Cogmind - Beta 13 @@@ ROGUE MODE // 2024.07.02 @ 15:43:33 Player: maykstuff Result: Destroyed by Y-45 Defender with Beam Rifle Performance ------------- Evolutions (2) 1000 Regions Visited (3) 600 Robots Destroyed (109) 545 Value Destroyed (3076) 3076 Prototype IDs (10) 200 Alien Tech Used (0) 0 Bonus (1363) 1363 TOTAL SCORE: 6784 Bonus ------- High Alert Combat Kills 1363 Cogmind --------- Core Integrity 0/550 Matter 150/300 Energy 59/100 System Corruption 0% Temperature Cool (9) Movement Walking (260) Ox2 Location -8/Materials Parts ------- > --- POWER (1) -------- (None) > --- PROPULSION (4) --- Aluminum Leg Aluminum Leg > --- UTILITY (4) ------ High-capacity Storage Unit System Shield > --- WEAPON (2) ------- Precision Beam Rifle > --- INVENTORY (20) --- Light Treads Improved Cooling System Small Storage Unit Sensor Array Terrain Scanner Terrain Scan Processor Advanced Targeting Computer Precision Beam Rifle Heavy Laser Flak Cannon Peak State ------------ > --- POWER ------------ Heavy Ion Engine > --- PROPULSION ------- Light Treads Light Treads Carbon-fiber Leg Wheel > --- UTILITY ---------- High-capacity Storage Unit Advanced Weight Redist. System System Shield > --- WEAPON ----------- Flak Cannon Flak Cannon > --- INVENTORY -------- Improved Treads Wheel Wheel Compact Wheel Improved Cooling System Small Storage Unit Sensor Array Terrain Scanner Terrain Scan Processor Advanced Targeting Computer Improved EM Shotgun Precision Beam Rifle Precision Beam Rifle Heavy Laser Heavy Laser Mini Grenade Launcher [Rating: 25] Favorites ----------- Power Cooled Ion Engine Engine Cooled Ion Engine Propulsion Light Treads Treads Light Treads Leg Carbon-fiber Leg Wheel Compact Wheel Flight Unit Improved Flight Unit Utility High-capacity Storage Unit Device High-powered Tractor Beam Storage High-capacity Storage Unit Hackware System Shield Protection Light Armor Plating Weapon Mini Grenade Launcher Energy Gun Improved EM Shotgun Energy Cannon Advanced Beam Cannon Ballistic Gun Assault Rifle Ballistic Cannon Flak Cannon Launcher Mini Grenade Launcher Build | -11 -10 -9 -8 ------- Run | Yrd Mat Mat Mat Slots Evolved 4 | . . 2 2 Power . | . . . . Propulsion 2 | . . 2 . Utility 2 | . . . 2 Weapon . | . . . . Parts Attached 88 | 9 5 30 44 Power 11 | 1 . 4 6 Engine 11 | 1 . 4 6 Core . | . . . . Reactor . | . . . . Propulsion 44 | 4 3 14 23 Treads 14 | . 3 4 7 Leg 8 | 2 . . 6 Wheel 21 | 2 . 10 9 Hover . | . . . . Flight 1 | . . . 1 Utility 10 | 2 1 2 5 Device 5 | 1 . 2 2 Storage 2 | 1 1 . . Processor . | . . . . Hackware 1 | . . . 1 Protection 2 | . . . 2 Artifact . | . . . . Weapon 23 | 2 1 10 10 Energy Gun 5 | . . 1 4 Energy Cannon 1 | . . 1 . Ballistic Gun 4 | 2 . 2 . Ballistic Cannon 3 | . . 1 2 Launcher 10 | . 1 5 4 Special Weapon . | . . . . Impact Weapon . | . . . . Slashing Weapon . | . . . . Piercing Weapon . | . . . . Special Melee Weapon . | . . . . Unidentified Prototypes 6 | . . 4 2 Parts Lost 41 | . . 17 24 Power 7 | . . 3 4 Propulsion 21 | . . 9 12 Utility 4 | . . 1 3 Weapon 9 | . . 4 5 Highest Loss Streak 9 | . . 7 9 To Critical Strikes . | . . . . Average Slot Usage (%) 84 | . 100 89 69 Engine 8 | . 14 9 5 Treads 21 | . 6 29 11 Wheel 10 | . 21 8 9 Device 9 | . 10 10 7 Storage 11 | . 17 11 9 Hackware 2 | . . . 8 Energy Gun 2 | . . . 5 Ballistic Gun 3 | . 17 2 . Ballistic Cannon 1 | . . . 6 Launcher 11 | . 10 16 3 Naked Turns . | . . . . Heaviest Build 60 | 12 53 56 60 Greatest Support 92 | 32 40 86 92 Greatest Overweight (x) 14 | . 1 2 14 Average Overweight (x) . | . . . 1 Largest Inventory Capacity 20 | 8 20 20 20 Average Capacity 18 | 7 10 20 20 Most Carried 20 | 8 11 20 18 Average Carried 15 | 5 8 17 13 Final Capacity 20 | 8 20 20 20 Final Carried 11 | 6 11 11 10 Class Distribution -------------------- 95% | Mutant 4% | Scavenger-Mutant Dominant Class ---------------- Mutant | -10/Materials Mutant | -9/Materials Mutant | -8/Materials Resources | -11 -10 -9 -8 ----------- Run | Yrd Mat Mat Mat Matter Collected 2044 | 240 110 1082 612 Remotely 756 | . . 756 . Salvage Created 2686 | 30 127 1463 1066 Parts 194 | 2 10 103 79 Haulers Intercepted 4 | . . 3 1 Recyclers Shooed 1 | . . 1 . Parts Field Recycled . | . . . . Retrieved Matter . | . . . . Parts Self-Destructed . | . . . . Prevented . | . . . . Kills | -11 -10 -9 -8 ------- Run | Yrd Mat Mat Mat Combat Hostiles Destroyed 79 | . 5 51 23 Guns 9 | . . 5 4 Cannons 7 | . . 1 6 AOE 63 | . 5 45 13 Classes Destroyed 14 | 1 2 9 2 Worker 6 | . . 3 3 Builder 10 | . . 3 7 Tunneler 1 | 1 . . . Hauler 4 | . . 3 1 Recycler 5 | . . 3 2 Operator 2 | . . 2 . Watcher 8 | . 1 5 2 Swarmer 12 | . . 9 3 Grunt 46 | . 5 30 11 Brawler 2 | . . 1 1 Duelist 1 | . . . 1 Protector 2 | . . 2 . Sentry 13 | . . 9 4 Hunter 3 | . . . 3 Best Kill Streak 11 | 1 6 11 6 Combat Bots Only 8 | . 5 8 4 Max Kills in Single Turn 5 | 1 2 5 5 Gunslinging . | . . . . Exploded 3 | . 2 3 2 Melee . | . . . . Uniques/NPCs Destroyed . | . . . . Combat | -11 -10 -9 -8 -------- Run | Yrd Mat Mat Mat Hostile Shots Fired 401 | . 13 187 201 Missed 131 | . 6 64 61 Damage Taken 4046 | . 87 1841 2118 Core 910 | . 40 318 552 Absorbed by Shields . | . . . . Core Remaining (%) 68 | 100 84 20 . Volleys Fired 163 | 5 10 90 58 Largest 2 | 2 2 2 2 Hottest 138 | 40 40 88 138 Shots Fired 248 | 10 14 139 85 Gun 81 | 10 8 34 29 Cannon 41 | . . 2 39 Launcher 126 | . 6 103 17 Special . | . . . . Kinetic 81 | 10 8 24 39 Thermal 23 | . . 1 22 Explosive 126 | . 6 103 17 Electromagnetic 18 | . . 11 7 Robot Hit Streak 12 | 2 3 12 10 Robot Miss Streak 7 | 3 3 5 7 Penetration Max . | . . . . Secondary Targets . | . . . . Shots Hit Robots 140 | 4 5 72 59 Core Hits 235 | 2 14 126 93 Critical Kills . | . . . . Critical Parts Destroyed . | . . . . Critical Strikes . | . . . . Melee Attacks . | . . . . Impact . | . . . . Slashing . | . . . . Piercing . | . . . . Sneak Attacks . | . . . . Combat Hostiles . | . . . . Follow-up Attacks . | . . . . Damage Inflicted 8314 | 34 445 5243 2592 Guns 832 | 34 29 409 360 Cannons 618 | . . 35 583 Explosions 6831 | . 416 4786 1629 Melee . | . . . . Ramming 33 | . . 13 20 Kinetic 952 | 34 29 306 583 Thermal 438 | . . 64 374 Explosive 6658 | . 416 4743 1499 Electromagnetic 233 | . . 117 116 Impact . | . . . . Slashing . | . . . . Piercing . | . . . . Highest Corruption 1 | . 1 . . Average Corruption 1 | . 1 . . Corruption Purged . | . . . . Corruption Blocked . | . . . . Overload Shots . | . . . . Overflow Damage 203 | . . 172 31 Projectiles . | . . . . Explosions 203 | . . 172 31 Melee . | . . . . Knockbacks 10 | . . . 10 Impact 1 | . . . 1 Kinetic 9 | . . . 9 Secondary . | . . . . Self-Inflicted Damage 554 | . . 455 99 Shots 21 | . . 17 4 Rammed 4 | . . 1 3 Targets Rammed 6 | . . 1 5 Kicked 1 | . . . 1 Crushed 1 | . . . 1 Highest Temperature 162 | . 6 57 162 Average Temperature 23 | . 3 13 28 Received Heat Transfer 1431 | . 48 573 810 Siege Activations . | . . . . Robots Corrupted . | . . . . Combat Hostiles . | . . . . Parts Fried . | . . . . Impact Corruptions . | . . . . Robots Melted . | . . . . Combat Hostiles . | . . . . Parts Melted 1 | . . . 1 Heat Transferred 656 | . . 75 581 Parts Sabotaged . | . . . . Parts Stolen . | . . . . Parts Stripped . | . . . . Power Chain Reactions 2 | . . . 2 Alert | -11 -10 -9 -8 ------- Run | Yrd Mat Mat Mat Peak Influence 1743 | 5 159 1743 1157 Initial 735 | . 3 66 735 Average 746 | 1 114 811 941 Maximum Alert Level 5 | . . 5 4 Low Security (%) 18 | 100 100 6 . Level 1 3 | . . 7 . Level 2 21 | . . 39 . Level 3 41 | . . 23 93 Level 4 12 | . . 19 6 Level 5 2 | . . 4 . High Security . | . . . . Max Security . | . . . . Squads Dispatched 19 | . 1 13 5 Investigation 7 | . 1 5 1 Extermination . | . . . . Reinforcement 8 | . . 5 3 Assault 3 | . . 3 . Garrison 1 | . . . 1 Intercept . | . . . . Searches Triggered . | . . . . Construction Impeded 4 | . . 2 2 Haulers Reinforced . | . . . . Active Scanning Responses . | . . . . Cargo Convoy Interrupts . | . . . . Stealth | -11 -10 -9 -8 --------- Run | Yrd Mat Mat Mat Distress Signals 8 | . 1 3 4 Communications Jammed . | . . . . Distress Signals . | . . . . Times Spotted 106 | . 8 63 35 Peak Tracking Total 6 | . 6 6 6 Tactical Retreats . | . . . . Traps | -11 -10 -9 -8 ------- Run | Yrd Mat Mat Mat Traps Triggered 4 | . . 1 3 Indirectly . | . . . . Trap Hack Attempts . | . . . . Triggered . | . . . . Disarmed . | . . . . Reprogrammed . | . . . . Reused . | . . . . Traps Extracted . | . . . . Installed . | . . . . Triggered . | . . . . Machines | -11 -10 -9 -8 ---------- Run | Yrd Mat Mat Mat Machines Disabled 19 | . 1 16 2 Max in Single Turn 2 | . 1 2 1 Machines Repaired . | . . . . Machines Dismantled . | . . . . Machines Sabotaged . | . . . . Overloaded Fab Kills . | . . . . Hacking | -11 -10 -9 -8 --------- Run | Yrd Mat Mat Mat Machines Accessed 13 | . 4 7 2 Terminals 9 | . 3 4 2 Fabricators . | . . . . Repair Stations 1 | . . 1 . Recycling Units 2 | . 1 1 . Scanalyzers 1 | . . 1 . Garrison Access . | . . . . Total Hacks 46 | . 10 30 6 Successful 23 | . 4 18 1 Failed 23 | . 6 12 5 Catastrophic 3 | . 1 2 . Database Lockouts . | . . . . Manual . | . . . . Terminals 27 | . 8 13 6 Fabricators . | . . . . Repair Stations 2 | . . 2 . Recycling Units 9 | . 2 7 . Scanalyzers 8 | . . 8 . Garrison Access . | . . . . Terminal Hacks 9 | . 2 6 1 Record 3 | . 1 2 . Prototype ID Bank 3 | . 1 1 1 Branch Access Points 1 | . . 1 . Locate Traps 1 | . . 1 . Hauler Manifests 1 | . . 1 . Fabricator Hacks . | . . . . Repair Station Hacks . | . . . . Recycling Unit Hacks 7 | . 2 5 . Recycle Component 1 | . . 1 . Process 2 | . . 2 . Report Inventory 1 | . 1 . . Retrieve Matter 2 | . . 2 . Retrieve Components 1 | . 1 . . Scanalyzer 7 | . . 7 . Insert Component 4 | . . 4 . Analyze 3 | . . 3 . Garrison Access Hacks . | . . . . Unauthorized Hacks . | . . . . Terminals . | . . . . Fabricators . | . . . . Repair Stations . | . . . . Recycling Units . | . . . . Scanalyzers . | . . . . Garrison Access . | . . . . Data Cores Recovered . | . . . . Used . | . . . . Hacking Detections 11 | . 3 6 2 Full Trace Events 8 | . 3 4 1 Feedback Events 1 | . 1 . . Corruption 1 | . 1 . . Feedback Blocked . | . . . . Robot Schematics Acquired . | . . . . Robots Built . | . . . . Authchips . | . . . . Time . | . . . . Total Robot Build Rating . | . . . . Part Schematics Acquired 2 | . . 2 . Parts Built . | . . . . Authchips . | . . . . Time . | . . . . Total Part Build Rating . | . . . . Parts Repaired . | . . . . Time . | . . . . Parts Recycled 1 | . . 1 . Recycled Matter 300 | . . 300 . Retrieved Matter 300 | . . 300 . Retrieved Components 3 | . 3 . . Parts Scanalyzed 3 | . . 3 . Part Schematics Acquired 2 | . . 2 . Parts Damaged 1 | . . 1 . Bothacking | -11 -10 -9 -8 ------------ Run | Yrd Mat Mat Mat Used RIF Installer . | . . . . Robots Hacked . | . . . . Non-combat . | . . . . Combat . | . . . . Robot Hacks Applied . | . . . . Relay Couplers Released . | . . . . Fabnet Peak Effective % . | . . . . Robots Rewired . | . . . . Allies Hacked . | . . . . Hacks Repelled . | . . . . Allies | -11 -10 -9 -8 -------- Run | Yrd Mat Mat Mat Total Allies . | . . . . Largest Group . | . . . . Highest-Rated Group . | . . . . Highest-Rated Ally . | . . . . Total Orders . | . . . . Ally Attacks . | . . . . Total Damage . | . . . . Kills . | . . . . Allies Corrupted . | . . . . Allies Melted . | . . . . Intel | -11 -10 -9 -8 ------- Run | Yrd Mat Mat Mat Robot Analysis Total . | . . . . Derelict Logs Recovered . | . . . . Drone Launches . | . . . . Drone Recoveries . | . . . . Exploration | -11 -10 -9 -8 ------------- Run | Yrd Mat Mat Mat Turns Passed 3011 | 117 316 1653 925 Spaces Moved 1590 | 82 236 926 346 Core 19 | 11 . . 8 Treads 821 | . 28 626 167 Legs 30 | 11 . . 19 Wheels 720 | 60 208 300 152 Hover . | . . . . Flight . | . . . . Fastest Speed 50 | 50 100 95 95 Average Speed 146 | 95 116 143 186 Slowest Speed 750 | 120 240 240 750 Overloaded Moves . | . . . . Propulsion Burnouts . | . . . . Robots Hopped . | . . . . Cave-ins Triggered . | . . . . Exploration Rate (%) 41 | 5 36 84 41 Regions Visited 3 Branch Regions . Pre-discovered Areas . | . . . . Known Exits Taken . | . . . . Unknown Exits Taken 3 | 1 1 1 . Scrap Searched . | . . . . Spaces Dug 13 | . . 13 . Terrain Destroyed 742 | . 11 612 119 Melee . | . . . . Projectile . | . . . . AOE 742 | . 11 612 119 Terrain Rammed . | . . . . Walls Destroyed . | . . . . Machines Disabled . | . . . . Actions | -11 -10 -9 -8 --------- Run | Yrd Mat Mat Mat Total 2011 | 108 263 1111 529 Wait 77 | 3 5 24 45 Move 1587 | 81 235 925 346 Hop . | . . . . Pick Up 72 | 10 6 26 30 Fast Attach 6 | 3 1 2 . Attach 52 | 4 . 16 32 Detach 4 | . . 3 1 Swap 30 | 2 4 12 12 Drop 14 | . 2 12 . Fire 163 | 5 10 90 58 Melee . | . . . . Ram 2 | . . 1 1 Kick 1 | . . . 1 Crush 3 | . . . 3 Escape Stasis . | . . . . Rewire . | . . . . Trap . | . . . . Miscellaneous . | . . . . Route ------- -11/Scrapyard -10/Materials (discovered 2 exits: *Mat / [*Min]) -9/Materials (discovered 4 exits: *Mat x2 / *Min x2) -8/Materials History --------- Turn | Location | Event 5 | -11/Scrapyard | Discovered new exit (range 16) 118 | -11/Scrapyard | Entered Materials 226 | -10/Materials | Discovered new exit (range 15) 310 | -10/Materials | Build established: Mutant 314 | -10/Materials | Discovered new exit (range 15) 434 | -10/Materials | Entered another Materials area 434 | -9/Materials | Evolved 2 slots: Propulsion x2 692 | -9/Materials | Discovered new exit (range 8) 736 | -9/Materials | Destroyed 8 combat bots 788 | -9/Materials | Discovered new exit (range 11) 1308 | -9/Materials | Identified exit to Mines 1634 | -9/Materials | First assault squad dispatched 1642 | -9/Materials | Discovered new exit (range 10) 1701 | -9/Materials | Core integrity fell below 50% 1819 | -9/Materials | Destroyed 7 combat bots 1996 | -9/Materials | Lost 7 parts (1p5n1w) 2070 | -9/Materials | Destroyed 7 combat bots 2087 | -9/Materials | Entered another Materials area 2087 | -8/Materials | Evolved 2 slots: Utility x2 2276 | -8/Materials | Garrison activated, responded to threat 2821 | -8/Materials | Lost 3 parts (1n1u1w) 2871 | -8/Materials | Core integrity fell below 50% 2951 | -8/Materials | Lost 9 parts (3p6n) 2994 | -8/Materials | Core integrity fell below 20% 3012 | -8/Materials | Destroyed by Y-45 Defender with Beam Rifle Last Messages --------------- U-05 Engineer builds a Wall. U-05 Engineer lays Concrete. Acquired 32 matter. U-05 Engineer lays Concrete. Acquired Lgt. Treads. U-05 Engineer builds a Wall. U-05 Engineer builds a Door. Hvy. Laser destroyed. U-05 Engineer destroyed. Mni. Grenade Launcher destroyed. Imp. Treads destroyed. U-05 Engineer builds a Wall. U-05 Engineer lays Concrete. Adv. Weight Redist. System destroyed. U-05 Engineer builds a Wall. Aluminum Leg destroyed. Critical hit (Burn: +37). Adv. Weight Redist. System destroyed. U-05 Engineer builds a Wall. Identified Prc. Beam Rifle. Map ----- +----------------------------------------------------+ | ????????????? # #?????### ###?? | | ??????????????? # #???????# #???? | | ????????????????"" """ # #???????# #???? | | ??????????#????""" """ # ! #???????# #???? | | ??????????# """ """ #==%! #???????# #???? | | ?????????## """ """ ##[+# ######### ###?? | | ????????? """ """ %[= =! #?? | | ????????? ^ ^ [ /%== +?? | | ????????# ^ =!!| = #?? | | ????????# ^ ### ## ##########+#?? | | ????????# # # #####????????????? | | ????????# ^ ^ ## ###????????????????? | | ????????# ^ ^ "####??????????????????? | | ????????# = ##????????????????????? | | ????????# !!/ " "" ##????????????????????? | | ????????# !!/ "R"" #############??????????? | | ????????# !/ """" ^^ ?????????? | | ????????# * ?????????? | | ???????# | ?????????? | | ? ### ### ####+######??????????? | | ! [#u #??????????????? | | *== %* ! + #??????????????? | | =%[ = ######Y #??????????????? | | ?????#### #### # ## #??????????????? | | ????????## ###?????### # #??????????????? | | ???????????????????#?# ##@ #??????????????? | | ?????????????????????## # #??????????????? | | ??????????????????????# # #??????????????? | | ??????????????????????#### #######??????????????? | | ?????????????????????????####????????????????????? | | ?????????????????????????????????????????????????? | | ?????????????????????????????????????????????????? | | ?????????????????????????????????????????????????? | | ?????????????????????????????????????????????????? | | ?????????????????????????????????????????????????? | | ?????????????????????????????????????????????????? | | ?????????????????????????????????????????????????? | | ?????????????????????????????????????????????????? | | ?????????????????????????????????????????????????? | | ?????????????????????????????????????????????????? | | ?????????????????????????????????????????????????? | | ?????????????????????????????????????????????????? | | ?????????????????????????????????????????????????? | | ?????????????????????????????????????????????????? | | ?????????????????????????????????????????????????? | | ?????????????????????????????????????????????????? | | ?????????????????????????????????????????????????? | | ?????????????????????????????????????????????????? | | | | | +----------------------------------------------------+ Best States ------------- Heat Dissipation 31 Energy Generation 14 Energy Capacity 280 Matter Stores 300 Matter Capacity 300 Sight Range 16 Terrain Scan Range 16 Terrain Scan Density 10 Additional Mass Support 9 Armor Coverage 150 Evasion (%) 55 Recoil Reduction 4 Defensive Hacking 10 Item Schematics ----------------- Lgt. Armor Plating | -9/Materials | Scanalyzed Assault Rifle | -9/Materials | Scanalyzed Robot Schematics ------------------ None Fabricated ------------ Nothing Alien Tech Used ----------------- None Achievements -------------- More Dakka Please Use The Force Challenges ------------ None Game ------ Seed SubdwellerShadeFragment Manual? 0 Play Time 00:43:41 Cumulative 3.4 hours Start 2024.07.02 @ 14:43:52 End 2024.07.02 @ 15:43:33 Sessions 1 Manual Loads 0 Difficulty Rogue Special Mode None Game No. 4 Rogue 4 Adventurer 0 Explorer 0 Win Type - Total 0 Types 0/0/0/0/0/0/0/0/0 Lore% 9 Gallery% 8 Achievement% 11 Wizard Run 0 Options --------- Layout 1 ASCII 1 Keyboard 0 Movement Mouse Keybinds 0 Fullscreen 1 Font 24/Proggy Map View 50x35 Zoom Use 0% Tactical HUD 0 Map Filters NONE Filters NONE Steam 0 RUN: acbba4f7-aa07-4cc3-937f-06362c1ddfd6